[Event "Titled Tuesday Blitz May 4 2021"]
[White "Mickiewicz, Piotr"]
[Black "Mohandesi, Shahin"]
[WhiteFideId "1114891"]
[BlackFideId "12501247"]
[WhiteElo "2263"]
[BlackElo "1993"]
[Result "0-1"]
[Round "05"]
[TimeControl "180+1"]
[Date "2021.05.04"]
[WhiteClock "0:00:03"]
[BlackClock "0:00:10"]

1. Nf3 {[%clk 0:03:00]}  Nf6 {[%clk 0:02:58]} 2. g3 {[%clk 0:03:00]}  g6 {[%clk 0:02:57]} 3. Bg2 {[%clk 0:03:01]}  Bg7 {[%clk 0:02:58]} 4. O-O {[%clk 0:03:02]}  O-O {[%clk 0:02:59]} 5. d3 {[%clk 0:03:00]}  d6 {[%clk 0:02:58]} 6. e4 {[%clk 0:02:59]}  e5 {[%clk 0:02:59]} 7. Nc3 {[%clk 0:02:58]}  Nc6 {[%clk 0:02:57]} 8. h3 {[%clk 0:02:56]}  Be6 {[%clk 0:02:56]} 9. Be3 {[%clk 0:02:45]}  h6 {[%clk 0:02:54]} 10. Qd2 {[%clk 0:02:44]}  Kh7 {[%clk 0:02:54]} 11. d4 {[%clk 0:02:42]}  exd4 {[%clk 0:02:44]} 12. Nxd4 {[%clk 0:02:43]}  Nxd4 {[%clk 0:02:45]} 13. Bxd4 {[%clk 0:02:42]}  Qd7 {[%clk 0:02:44]} 14. Kh2 {[%clk 0:02:41]}  Rfe8 {[%clk 0:02:38]} 15. Rfe1 {[%clk 0:02:33]}  a6 {[%clk 0:02:10]} 16. a4 {[%clk 0:02:32]}  Rad8 {[%clk 0:02:09]} 17. a5 {[%clk 0:02:25]}  Nh5 {[%clk 0:02:03]} 18. Rad1 {[%clk 0:02:21]}  Qc8 {[%clk 0:01:36]} 19. b3 {[%clk 0:02:16]}  Qd7 {[%clk 0:01:32]} 20. f4 {[%clk 0:02:00]}  Bxd4 {[%clk 0:01:22]} 21. Qxd4 {[%clk 0:02:01]}  Ng7 {[%clk 0:01:22]} 22. g4 {[%clk 0:01:26]}  f5 {[%clk 0:01:13]} 23. gxf5 {[%clk 0:01:04]}  gxf5 {[%clk 0:01:14]} 24. Nd5 {[%clk 0:01:03]}  Bxd5 {[%clk 0:01:12]} 25. exd5 {[%clk 0:01:04]}  Rxe1 {[%clk 0:01:01]} 26. Rxe1 {[%clk 0:01:03]}  Re8 {[%clk 0:01:02]} 27. Re3 {[%clk 0:00:41]}  Nh5 {[%clk 0:00:45]} 28. Bf3 {[%clk 0:00:31]}  Ng7 {[%clk 0:00:32]} 29. c4 {[%clk 0:00:29]}  Re7 {[%clk 0:00:28]} 30. Kg3 {[%clk 0:00:25]}  Ne8 {[%clk 0:00:26]} 31. Kf2 {[%clk 0:00:24]}  Rg7 {[%clk 0:00:23]} 32. Re6 {[%clk 0:00:23]}  Qd8 {[%clk 0:00:20]} 33. Ke2 {[%clk 0:00:18]}  Rg6 {[%clk 0:00:15]} 34. Rxg6 {[%clk 0:00:14]}  Kxg6 {[%clk 0:00:15]} 35. Qh8 {[%clk 0:00:15]}  Qe7+ {[%clk 0:00:14]} 36. Kd3 {[%clk 0:00:12]}  Nf6 {[%clk 0:00:14]} 37. Qc8 {[%clk 0:00:09]}  Qe1 {[%clk 0:00:11]} 38. Bh5+ {[%clk 0:00:05]}  Nxh5 {[%clk 0:00:10]} 39. Qe8+ {[%clk 0:00:03]}  Qxe8 {[%clk 0:00:10]} 0-1


[Site "https://www.chess.com"]

[Event "Titled Tuesday Blitz May 4 2021"]
[White "Minaya, Juan"]
[Black "Alice, Mateus Felizardo Viageiro"]
[WhiteFideId "4400283"]
[BlackFideId "14800047"]
[WhiteElo "1849"]
[BlackElo "2189"]
[Result "0-1"]
[Round "05"]
[TimeControl "180+1"]
[Date "2021.05.04"]
[WhiteClock "0:00:08"]
[BlackClock "0:01:33"]

1. Nf3 {[%clk 0:03:00]}  Nf6 {[%clk 0:02:58]} 2. c4 {[%clk 0:02:58]}  e6 {[%clk 0:02:58]} 3. g3 {[%clk 0:02:55]}  b6 {[%clk 0:02:59]} 4. Bg2 {[%clk 0:02:54]}  Ba6 {[%clk 0:02:59]} 5. b3 {[%clk 0:02:47]}  Be7 {[%clk 0:02:58]} 6. O-O {[%clk 0:02:46]}  Bb7 {[%clk 0:02:56]} 7. Bb2 {[%clk 0:02:44]}  O-O {[%clk 0:02:56]} 8. d3 {[%clk 0:02:42]}  c5 {[%clk 0:02:55]} 9. Nc3 {[%clk 0:02:36]}  d5 {[%clk 0:02:55]} 10. Ne5 {[%clk 0:02:28]}  Nc6 {[%clk 0:02:55]} 11. Nxc6 {[%clk 0:02:26]}  Bxc6 {[%clk 0:02:54]} 12. e4 {[%clk 0:02:21]}  d4 {[%clk 0:02:46]} 13. Ne2 {[%clk 0:02:18]}  Qc7 {[%clk 0:02:45]} 14. h3 {[%clk 0:02:15]}  a5 {[%clk 0:02:42]} 15. f4 {[%clk 0:02:10]}  Rfd8 {[%clk 0:02:39]} 16. Rf2 {[%clk 0:02:07]}  a4 {[%clk 0:02:36]} 17. e5 {[%clk 0:02:02]}  Ne8 {[%clk 0:02:31]} 18. Kh2 {[%clk 0:01:48]}  Bxg2 {[%clk 0:02:28]} 19. Rxg2 {[%clk 0:01:45]}  g6 {[%clk 0:02:23]} 20. g4 {[%clk 0:01:40]}  Qc6 {[%clk 0:02:14]} 21. Ng3 {[%clk 0:01:38]}  axb3 {[%clk 0:02:08]} 22. axb3 {[%clk 0:01:36]}  Rxa1 {[%clk 0:02:08]} 23. Qxa1 {[%clk 0:01:30]}  Ra8 {[%clk 0:02:09]} 24. Qb1 {[%clk 0:01:28]}  Qf3 {[%clk 0:02:04]} 25. Ne4 {[%clk 0:01:21]}  Qxf4+ {[%clk 0:02:04]} 26. Kh1 {[%clk 0:01:18]}  Qxe5 {[%clk 0:02:04]} 27. Bc1 {[%clk 0:01:14]}  Nd6 {[%clk 0:02:02]} 28. Ng3 {[%clk 0:01:01]}  Bh4 {[%clk 0:01:59]} 29. Ne2 {[%clk 0:00:59]}  Bg5 {[%clk 0:01:52]} 30. Bf4 {[%clk 0:00:52]}  Bxf4 {[%clk 0:01:51]} 31. b4 {[%clk 0:00:49]}  Be3 {[%clk 0:01:46]} 32. bxc5 {[%clk 0:00:38]}  bxc5 {[%clk 0:01:46]} 33. Nc1 {[%clk 0:00:27]}  Bxc1 {[%clk 0:01:42]} 34. Qxc1 {[%clk 0:00:26]}  Qe3 {[%clk 0:01:39]} 35. Qxe3 {[%clk 0:00:16]}  dxe3 {[%clk 0:01:38]} 36. Re2 {[%clk 0:00:15]}  Ra3 {[%clk 0:01:36]} 37. Rxe3 {[%clk 0:00:15]}  Nxc4 {[%clk 0:01:37]} 38. Re2 {[%clk 0:00:13]}  Rxd3 {[%clk 0:01:36]} 39. Rc2 {[%clk 0:00:11]}  Rxh3+ {[%clk 0:01:32]} 40. Kg2 {[%clk 0:00:10]}  Ne3+ {[%clk 0:01:32]} 41. Kxh3 {[%clk 0:00:08]}  Nxc2 {[%clk 0:01:33]} 0-1


[Site "https://www.chess.com"]

[Event "Titled Tuesday Blitz May 4 2021"]
[White "Mohammad Fahad, Rahman"]
[Black "Sadhwani, Raunak"]
[WhiteFideId "10207791"]
[BlackFideId "35093487"]
[WhiteElo "2308"]
[BlackElo "2514"]
[Result "1-0"]
[Round "05"]
[TimeControl "180+1"]
[Date "2021.05.04"]
[WhiteClock "0:00:05"]
[BlackClock "0:00:04"]

1. e4 {[%clk 0:03:00]}  d6 {[%clk 0:03:00]} 2. d4 {[%clk 0:03:01]}  Nf6 {[%clk 0:03:00]} 3. Nc3 {[%clk 0:03:01]}  g6 {[%clk 0:03:01]} 4. Be3 {[%clk 0:03:02]}  a6 {[%clk 0:03:01]} 5. a4 {[%clk 0:02:58]}  b6 {[%clk 0:03:00]} 6. Qd2 {[%clk 0:02:57]}  Bb7 {[%clk 0:03:01]} 7. f3 {[%clk 0:02:57]}  h5 {[%clk 0:02:50]} 8. Bc4 {[%clk 0:02:47]}  e6 {[%clk 0:02:48]} 9. Bb3 {[%clk 0:02:45]}  Bg7 {[%clk 0:02:47]} 10. Nge2 {[%clk 0:02:42]}  Nbd7 {[%clk 0:02:43]} 11. Bg5 {[%clk 0:02:35]}  Qc8 {[%clk 0:02:27]} 12. O-O-O {[%clk 0:02:34]}  b5 {[%clk 0:02:22]} 13. Kb1 {[%clk 0:02:27]}  b4 {[%clk 0:02:17]} 14. Na2 {[%clk 0:02:25]}  a5 {[%clk 0:02:17]} 15. Rhe1 {[%clk 0:02:09]}  Nb6 {[%clk 0:02:14]} 16. Nac1 {[%clk 0:01:40]}  Qd7 {[%clk 0:02:10]} 17. Qf4 {[%clk 0:01:34]}  Nh7 {[%clk 0:01:42]} 18. Bh6 {[%clk 0:01:34]}  Bxh6 {[%clk 0:01:30]} 19. Qxh6 {[%clk 0:01:34]}  O-O-O {[%clk 0:01:30]} 20. Nf4 {[%clk 0:01:16]}  Kb8 {[%clk 0:01:28]} 21. Nfd3 {[%clk 0:01:10]}  Nxa4 {[%clk 0:01:22]} 22. e5 {[%clk 0:01:07]}  Nb6 {[%clk 0:01:19]} 23. Qf4 {[%clk 0:00:40]}  Ka7 {[%clk 0:01:14]} 24. Ba2 {[%clk 0:00:33]}  Bd5 {[%clk 0:01:11]} 25. Nb3 {[%clk 0:00:15]}  a4 {[%clk 0:01:10]} 26. Nbc1 {[%clk 0:00:16]}  Bxa2+ {[%clk 0:00:28]} 27. Nxa2 {[%clk 0:00:16]}  Nd5 {[%clk 0:00:29]} 28. Qd2 {[%clk 0:00:17]}  Rb8 {[%clk 0:00:26]} 29. Ndxb4 {[%clk 0:00:16]}  Qb5 {[%clk 0:00:23]} 30. c3 {[%clk 0:00:16]}  Nb6 {[%clk 0:00:23]} 31. exd6 {[%clk 0:00:15]}  cxd6 {[%clk 0:00:24]} 32. Qf4 {[%clk 0:00:16]}  Qd7 {[%clk 0:00:19]} 33. d5 {[%clk 0:00:14]}  e5 {[%clk 0:00:18]} 34. Qe3 {[%clk 0:00:14]}  Kb7 {[%clk 0:00:15]} 35. Nc6 {[%clk 0:00:14]}  Ra8 {[%clk 0:00:16]} 36. Nab4 {[%clk 0:00:15]}  Nf6 {[%clk 0:00:16]} 37. Qc1 {[%clk 0:00:10]}  a3 {[%clk 0:00:14]} 38. bxa3 {[%clk 0:00:10]}  Kc7 {[%clk 0:00:12]} 39. c4 {[%clk 0:00:10]}  Na4 {[%clk 0:00:08]} 40. Ka2 {[%clk 0:00:07]}  Nc5 {[%clk 0:00:08]} 41. Nd3 {[%clk 0:00:08]}  Nxd3 {[%clk 0:00:04]} 42. Rxd3 {[%clk 0:00:09]}  Rhc8 {[%clk 0:00:05]} 43. f4 {[%clk 0:00:07]}  e4 {[%clk 0:00:05]} 44. Rb3 {[%clk 0:00:06]}  Qg4 {[%clk 0:00:04]} 45. Qb2 {[%clk 0:00:06]}  Kd7 {[%clk 0:00:04]} 46. Qxf6 {[%clk 0:00:06]}  Qxg2+ {[%clk 0:00:03]} 47. Rb2 {[%clk 0:00:06]}  Rxa3+ {[%clk 0:00:03]} 48. Kxa3 {[%clk 0:00:06]}  Ra8+ {[%clk 0:00:04]} 49. Kb4 {[%clk 0:00:05]} 1-0


[Site "https://www.chess.com"]

[Event "Titled Tuesday Blitz May 4 2021"]
[White "Morris-Suzuki, Sophie"]
[Black "Belanoff, Ted"]
[WhiteFideId "30922615"]
[BlackFideId "2070588"]
[WhiteElo "2396"]
[BlackElo "2173"]
[Result "1-0"]
[Round "05"]
[TimeControl "180+1"]
[Date "2021.05.04"]
[WhiteClock "0:00:48"]
[BlackClock "0:00:10"]

1. c4 {[%clk 0:03:00]}  Nf6 {[%clk 0:00:41]} 2. Nc3 {[%clk 0:03:01]}  g6 {[%clk 0:00:41]} 3. Nf3 {[%clk 0:03:02]}  d5 {[%clk 0:00:39]} 4. d4 {[%clk 0:03:02]}  Bg7 {[%clk 0:00:39]} 5. cxd5 {[%clk 0:03:03]}  Nxd5 {[%clk 0:00:40]} 6. e4 {[%clk 0:03:03]}  Nxc3 {[%clk 0:00:40]} 7. bxc3 {[%clk 0:03:04]}  c5 {[%clk 0:00:41]} 8. Bc4 {[%clk 0:02:59]}  cxd4 {[%clk 0:00:41]} 9. cxd4 {[%clk 0:02:59]}  O-O {[%clk 0:00:40]} 10. h3 {[%clk 0:02:54]}  Nc6 {[%clk 0:00:41]} 11. Be3 {[%clk 0:02:54]}  Bd7 {[%clk 0:00:40]} 12. O-O {[%clk 0:02:53]}  e6 {[%clk 0:00:41]} 13. Rb1 {[%clk 0:02:52]}  Na5 {[%clk 0:00:41]} 14. Bd3 {[%clk 0:02:51]}  b6 {[%clk 0:00:41]} 15. Qd2 {[%clk 0:02:49]}  Bc6 {[%clk 0:00:42]} 16. Bh6 {[%clk 0:02:47]}  Re8 {[%clk 0:00:33]} 17. Bxg7 {[%clk 0:02:47]}  Kxg7 {[%clk 0:00:33]} 18. h4 {[%clk 0:02:47]}  Bb7 {[%clk 0:00:33]} 19. h5 {[%clk 0:02:47]}  Qf6 {[%clk 0:00:32]} 20. e5 {[%clk 0:02:44]}  Qd8 {[%clk 0:00:32]} 21. h6+ {[%clk 0:02:43]}  Kg8 {[%clk 0:00:33]} 22. Qe3 {[%clk 0:02:40]}  Nc6 {[%clk 0:00:31]} 23. Be4 {[%clk 0:02:35]}  Qd7 {[%clk 0:00:31]} 24. Qf4 {[%clk 0:02:33]}  Qe7 {[%clk 0:00:29]} 25. Rbc1 {[%clk 0:02:31]}  Rac8 {[%clk 0:00:29]} 26. Ng5 {[%clk 0:02:25]}  Nxd4 {[%clk 0:00:25]} 27. Kh2 {[%clk 0:02:25]}  Ne2 {[%clk 0:00:16]} 28. Qe3 {[%clk 0:02:00]}  Nxc1 {[%clk 0:00:14]} 29. Bxb7 {[%clk 0:01:53]}  Qxb7 {[%clk 0:00:13]} 30. Ne4 {[%clk 0:01:51]}  Re7 {[%clk 0:00:07]} 31. Nd6 {[%clk 0:01:45]}  Qd7 {[%clk 0:00:02]} 32. Nxc8 {[%clk 0:01:37]}  Qxc8 {[%clk 0:00:02]} 33. Rxc1 {[%clk 0:01:37]}  Qf8 {[%clk 0:00:03]} 34. Qg5 {[%clk 0:01:34]}  f6 {[%clk 0:00:02]} 35. exf6 {[%clk 0:01:32]}  Rf7 {[%clk 0:00:03]} 36. f3 {[%clk 0:01:12]}  Rxf6 {[%clk 0:00:04]} 37. Rc7 {[%clk 0:01:13]}  Rf5 {[%clk 0:00:05]} 38. Qe3 {[%clk 0:01:02]}  Rh5+ {[%clk 0:00:05]} 39. Kg1 {[%clk 0:01:02]}  Rxh6 {[%clk 0:00:05]} 40. Qxe6+ {[%clk 0:01:02]}  Kh8 {[%clk 0:00:05]} 41. Rc8 {[%clk 0:01:00]}  Qxc8 {[%clk 0:00:04]} 42. Qxc8+ {[%clk 0:01:01]}  Kg7 {[%clk 0:00:04]} 43. Qc7+ {[%clk 0:01:00]}  Kf6 {[%clk 0:00:05]} 44. Qf4+ {[%clk 0:00:58]}  Kg7 {[%clk 0:00:06]} 45. Qc7+ {[%clk 0:00:57]}  Kf6 {[%clk 0:00:06]} 46. Qxa7 {[%clk 0:00:58]}  Kg5 {[%clk 0:00:07]} 47. Qxb6 {[%clk 0:00:57]}  Kh5 {[%clk 0:00:08]} 48. g4+ {[%clk 0:00:52]}  Kh4 {[%clk 0:00:08]} 49. Qf2+ {[%clk 0:00:52]}  Kg5 {[%clk 0:00:08]} 50. Qe3+ {[%clk 0:00:52]}  Kh4 {[%clk 0:00:08]} 51. Qxh6+ {[%clk 0:00:52]}  Kg3 {[%clk 0:00:09]} 52. Qxh7 {[%clk 0:00:50]}  g5 {[%clk 0:00:10]} 53. Qf5 {[%clk 0:00:48]}  Kh3 {[%clk 0:00:10]} 1-0


[Site "https://www.chess.com"]

[Event "Titled Tuesday Blitz May 4 2021"]
[White "Moultino06"]
[Black "Quesada Perez, Yasser"]
[BlackFideId "3509362"]
[WhiteElo "2685"]
[BlackElo "2420"]
[Result "1/2-1/2"]
[Round "05"]
[TimeControl "180+1"]
[Date "2021.05.04"]
[WhiteClock "0:00:07"]
[BlackClock "0:00:03"]

1. c4 {[%clk 0:02:53]}  e5 {[%clk 0:02:58]} 2. b3 {[%clk 0:02:53]}  Nf6 {[%clk 0:02:55]} 3. Bb2 {[%clk 0:02:53]}  Nc6 {[%clk 0:02:56]} 4. e3 {[%clk 0:02:53]}  d5 {[%clk 0:02:51]} 5. cxd5 {[%clk 0:02:54]}  Nxd5 {[%clk 0:02:51]} 6. a3 {[%clk 0:02:48]}  Bd6 {[%clk 0:02:49]} 7. Qc2 {[%clk 0:02:48]}  O-O {[%clk 0:02:47]} 8. Nf3 {[%clk 0:02:48]}  Qe7 {[%clk 0:02:43]} 9. Bd3 {[%clk 0:02:25]}  f5 {[%clk 0:02:22]} 10. Bc4 {[%clk 0:02:21]}  Be6 {[%clk 0:02:22]} 11. d3 {[%clk 0:02:06]}  Kh8 {[%clk 0:02:20]} 12. Nbd2 {[%clk 0:02:01]}  a6 {[%clk 0:02:15]} 13. b4 {[%clk 0:01:56]}  Rae8 {[%clk 0:02:11]} 14. h4 {[%clk 0:01:42]}  Bg8 {[%clk 0:02:05]} 15. Qb3 {[%clk 0:01:40]}  Nf6 {[%clk 0:01:51]} 16. Rc1 {[%clk 0:01:35]}  Ng4 {[%clk 0:01:38]} 17. Bxg8 {[%clk 0:01:11]}  Rxg8 {[%clk 0:01:38]} 18. Ng5 {[%clk 0:01:10]}  Rgf8 {[%clk 0:01:37]} 19. Ke2 {[%clk 0:01:05]}  Nd4+ {[%clk 0:01:24]} 20. exd4 {[%clk 0:00:51]}  exd4+ {[%clk 0:01:25]} 21. Kd1 {[%clk 0:00:51]}  Nxf2+ {[%clk 0:01:15]} 22. Kc2 {[%clk 0:00:52]}  Nxh1 {[%clk 0:01:14]} 23. Rxh1 {[%clk 0:00:53]}  h6 {[%clk 0:01:07]} 24. Qd5 {[%clk 0:00:40]}  c5 {[%clk 0:01:02]} 25. bxc5 {[%clk 0:00:35]}  Bxc5 {[%clk 0:01:02]} 26. Kb3 {[%clk 0:00:35]}  Rc8 {[%clk 0:00:34]} 27. Ka2 {[%clk 0:00:29]}  Bxa3 {[%clk 0:00:18]} 28. Bxa3 {[%clk 0:00:26]}  Rc2+ {[%clk 0:00:18]} 29. Kb1 {[%clk 0:00:26]}  Qxa3 {[%clk 0:00:18]} 30. Kxc2 {[%clk 0:00:26]}  Rc8+ {[%clk 0:00:17]} 31. Nc4 {[%clk 0:00:25]}  Qc3+ {[%clk 0:00:17]} 32. Kd1 {[%clk 0:00:18]}  Qxd3+ {[%clk 0:00:17]} 33. Nd2 {[%clk 0:00:17]}  Qc2+ {[%clk 0:00:15]} 34. Ke2 {[%clk 0:00:17]}  Re8+ {[%clk 0:00:15]} 35. Ne6 {[%clk 0:00:15]}  Qc3 {[%clk 0:00:09]} 36. Re1 {[%clk 0:00:12]}  d3+ {[%clk 0:00:04]} 37. Kf1 {[%clk 0:00:09]}  Qxd2 {[%clk 0:00:04]} 38. Qd4 {[%clk 0:00:08]}  Rg8 {[%clk 0:00:04]} 39. Nxg7 {[%clk 0:00:05]}  Rxg7 {[%clk 0:00:03]} 40. Re7 {[%clk 0:00:05]}  Qd1+ {[%clk 0:00:01]} 41. Kf2 {[%clk 0:00:05]}  Qd2+ {[%clk 0:00:02]} 42. Kf1 {[%clk 0:00:06]}  Qd1+ {[%clk 0:00:02]} 43. Kf2 {[%clk 0:00:06]}  Qd2+ {[%clk 0:00:03]} 44. Kf1 {[%clk 0:00:07]} 1/2-1/2


[Site "https://www.chess.com"]

[Event "Titled Tuesday Blitz May 4 2021"]
[White "Nesterov, Arseniy"]
[Black "Chen, Forest"]
[WhiteFideId "24198455"]
[BlackFideId "30908205"]
[WhiteElo "2441"]
[BlackElo "2505"]
[Result "1-0"]
[Round "05"]
[TimeControl "180+1"]
[Date "2021.05.04"]
[WhiteClock "0:00:08"]
[BlackClock "0:00:09"]

1. d4 {[%clk 0:03:00]}  d5 {[%clk 0:02:57]} 2. c4 {[%clk 0:03:01]}  e6 {[%clk 0:02:56]} 3. Nf3 {[%clk 0:03:01]}  Nf6 {[%clk 0:02:57]} 4. Nc3 {[%clk 0:03:01]}  Bb4 {[%clk 0:02:57]} 5. Qb3 {[%clk 0:03:00]}  c5 {[%clk 0:02:57]} 6. dxc5 {[%clk 0:03:00]}  Qa5 {[%clk 0:02:50]} 7. Bd2 {[%clk 0:02:47]}  dxc4 {[%clk 0:02:06]} 8. Qxc4 {[%clk 0:02:46]}  Qxc5 {[%clk 0:02:07]} 9. Qxc5 {[%clk 0:02:33]}  Bxc5 {[%clk 0:02:07]} 10. Nb5 {[%clk 0:02:16]}  Na6 {[%clk 0:02:03]} 11. Rc1 {[%clk 0:02:15]}  O-O {[%clk 0:02:02]} 12. e3 {[%clk 0:02:05]}  Ne4 {[%clk 0:02:01]} 13. Bd3 {[%clk 0:01:45]}  Nxd2 {[%clk 0:01:56]} 14. Nxd2 {[%clk 0:01:46]}  Rd8 {[%clk 0:01:54]} 15. Ke2 {[%clk 0:01:36]}  Bd7 {[%clk 0:01:52]} 16. Ne4 {[%clk 0:01:32]}  Bf8 {[%clk 0:01:42]} 17. a3 {[%clk 0:01:12]}  Bc6 {[%clk 0:01:40]} 18. Nd4 {[%clk 0:01:01]}  Bd5 {[%clk 0:01:32]} 19. f3 {[%clk 0:00:48]}  Rac8 {[%clk 0:01:24]} 20. Nb5 {[%clk 0:00:41]}  Ra8 {[%clk 0:00:33]} 21. Rhd1 {[%clk 0:00:28]}  Bb3 {[%clk 0:00:22]} 22. Rd2 {[%clk 0:00:27]}  h6 {[%clk 0:00:20]} 23. Nd4 {[%clk 0:00:24]}  Bd5 {[%clk 0:00:20]} 24. b4 {[%clk 0:00:20]}  Nb8 {[%clk 0:00:18]} 25. Nc3 {[%clk 0:00:14]}  Nd7 {[%clk 0:00:14]} 26. Nxd5 {[%clk 0:00:14]}  exd5 {[%clk 0:00:15]} 27. Rc7 {[%clk 0:00:12]}  Rab8 {[%clk 0:00:15]} 28. Bf5 {[%clk 0:00:06]}  Ne5 {[%clk 0:00:15]} 29. Rd1 {[%clk 0:00:05]}  Bd6 {[%clk 0:00:15]} 30. Rc2 {[%clk 0:00:04]}  Nc4 {[%clk 0:00:15]} 31. Rd3 {[%clk 0:00:05]}  Re8 {[%clk 0:00:14]} 32. Nb5 {[%clk 0:00:05]}  Bxh2 {[%clk 0:00:13]} 33. Kf2 {[%clk 0:00:04]}  a6 {[%clk 0:00:13]} 34. Nc3 {[%clk 0:00:03]}  Be5 {[%clk 0:00:10]} 35. Nxd5 {[%clk 0:00:03]}  Nd6 {[%clk 0:00:10]} 36. Bh3 {[%clk 0:00:03]}  b5 {[%clk 0:00:10]} 37. f4 {[%clk 0:00:03]}  Ba1 {[%clk 0:00:09]} 38. Rd1 {[%clk 0:00:04]}  Ne4+ {[%clk 0:00:07]} 39. Kf3 {[%clk 0:00:04]}  Bf6 {[%clk 0:00:07]} 40. Bf5 {[%clk 0:00:04]}  Nd6 {[%clk 0:00:02]} 41. Nxf6+ {[%clk 0:00:04]}  gxf6 {[%clk 0:00:03]} 42. Rxd6 {[%clk 0:00:05]}  Kg7 {[%clk 0:00:04]} 43. Rcc6 {[%clk 0:00:04]}  Re7 {[%clk 0:00:04]} 44. Rxf6 {[%clk 0:00:05]}  Rbe8 {[%clk 0:00:05]} 45. e4 {[%clk 0:00:05]}  Rd8 {[%clk 0:00:05]} 46. Rfd6 {[%clk 0:00:05]}  Rxd6 {[%clk 0:00:05]} 47. Rxd6 {[%clk 0:00:06]}  Rc7 {[%clk 0:00:06]} 48. Rxa6 {[%clk 0:00:06]}  Rc3+ {[%clk 0:00:06]} 49. Kg4 {[%clk 0:00:07]}  Rb3 {[%clk 0:00:07]} 50. g3 {[%clk 0:00:07]}  Rb2 {[%clk 0:00:07]} 51. e5 {[%clk 0:00:07]}  Rb3 {[%clk 0:00:08]} 52. Ra7 {[%clk 0:00:08]}  h5+ {[%clk 0:00:08]} 53. Kh4 {[%clk 0:00:07]}  Rxg3 {[%clk 0:00:09]} 54. Kxg3 {[%clk 0:00:08]} 1-0


[Site "https://www.chess.com"]

[Event "Titled Tuesday Blitz May 4 2021"]
[White "Omariev, Maksim"]
[Black "Kretov, Evgenij"]
[WhiteFideId "4193423"]
[BlackFideId "4167821"]
[WhiteElo "2398"]
[BlackElo "2381"]
[Result "0-1"]
[Round "05"]
[TimeControl "180+1"]
[Date "2021.05.04"]
[WhiteClock "0:00:03"]
[BlackClock "0:00:37"]

1. g4 {[%clk 0:03:00]}  d5 {[%clk 0:02:58]} 2. Bg2 {[%clk 0:03:00]}  c6 {[%clk 0:02:59]} 3. g5 {[%clk 0:02:58]}  e5 {[%clk 0:02:57]} 4. d4 {[%clk 0:02:58]}  e4 {[%clk 0:02:54]} 5. c4 {[%clk 0:02:54]}  Bd6 {[%clk 0:02:52]} 6. Nc3 {[%clk 0:02:54]}  Ne7 {[%clk 0:02:52]} 7. h4 {[%clk 0:02:50]}  Bg4 {[%clk 0:02:45]} 8. Qb3 {[%clk 0:02:20]}  Qd7 {[%clk 0:02:44]} 9. c5 {[%clk 0:02:14]}  Bc7 {[%clk 0:02:35]} 10. Qxb7 {[%clk 0:02:12]}  O-O {[%clk 0:02:34]} 11. Qxa8 {[%clk 0:02:10]}  Ba5 {[%clk 0:02:34]} 12. a3 {[%clk 0:01:15]}  Na6 {[%clk 0:02:29]} 13. Qxf8+ {[%clk 0:01:13]}  Kxf8 {[%clk 0:02:29]} 14. b4 {[%clk 0:01:14]}  Bd8 {[%clk 0:02:20]} 15. Bf4 {[%clk 0:00:40]}  Nf5 {[%clk 0:02:18]} 16. e3 {[%clk 0:00:41]}  Nc7 {[%clk 0:02:15]} 17. Nge2 {[%clk 0:00:38]}  Ne6 {[%clk 0:02:14]} 18. Be5 {[%clk 0:00:34]}  f6 {[%clk 0:02:10]} 19. gxf6 {[%clk 0:00:34]}  gxf6 {[%clk 0:02:09]} 20. Bg3 {[%clk 0:00:27]}  Nxg3 {[%clk 0:02:04]} 21. fxg3 {[%clk 0:00:28]}  Ng7 {[%clk 0:01:57]} 22. Rf1 {[%clk 0:00:26]}  Nh5 {[%clk 0:01:57]} 23. Kf2 {[%clk 0:00:21]}  Bc7 {[%clk 0:01:55]} 24. a4 {[%clk 0:00:20]}  Qf5+ {[%clk 0:01:46]} 25. Nf4 {[%clk 0:00:18]}  Nxf4 {[%clk 0:01:36]} 26. gxf4 {[%clk 0:00:17]}  Bxf4 {[%clk 0:01:35]} 27. exf4 {[%clk 0:00:16]}  Qxf4+ {[%clk 0:01:36]} 28. Kg1 {[%clk 0:00:12]}  Qe3+ {[%clk 0:01:33]} 29. Kh2 {[%clk 0:00:11]}  Qxc3 {[%clk 0:01:31]} 30. Rxf6+ {[%clk 0:00:12]}  Kg7 {[%clk 0:01:31]} 31. Raf1 {[%clk 0:00:12]}  Qxd4 {[%clk 0:01:30]} 32. Rxc6 {[%clk 0:00:10]}  Qe5+ {[%clk 0:01:25]} 33. Kh1 {[%clk 0:00:09]}  e3 {[%clk 0:01:24]} 34. Ra6 {[%clk 0:00:06]}  e2 {[%clk 0:01:16]} 35. Rxa7+ {[%clk 0:00:06]}  Kh6 {[%clk 0:01:16]} 36. Ra6+ {[%clk 0:00:03]}  Kh5 {[%clk 0:01:16]} 37. Re1 {[%clk 0:00:04]}  Qg3 {[%clk 0:01:12]} 38. Rxe2 {[%clk 0:00:04]}  Bxe2 {[%clk 0:01:09]} 39. Rd6 {[%clk 0:00:03]}  Qxh4+ {[%clk 0:01:08]} 40. Kg1 {[%clk 0:00:03]}  Qe1+ {[%clk 0:01:09]} 41. Kh2 {[%clk 0:00:03]}  Qh4+ {[%clk 0:01:08]} 42. Kg1 {[%clk 0:00:04]}  Qxb4 {[%clk 0:01:08]} 43. Rxd5+ {[%clk 0:00:03]}  Kh4 {[%clk 0:01:08]} 44. c6 {[%clk 0:00:03]}  Qe1+ {[%clk 0:01:00]} 45. Kh2 {[%clk 0:00:03]}  Bg4 {[%clk 0:00:59]} 46. Rb5 {[%clk 0:00:02]}  Qg3+ {[%clk 0:00:57]} 47. Kh1 {[%clk 0:00:03]}  Bf3 {[%clk 0:00:39]} 48. Bxf3 {[%clk 0:00:02]}  Qxf3+ {[%clk 0:00:39]} 49. Kh2 {[%clk 0:00:03]}  Qxc6 {[%clk 0:00:37]} 0-1


[Site "https://www.chess.com"]

[Event "Titled Tuesday Blitz May 4 2021"]
[White "Ozen, Bahadir"]
[Black "Alexeev, Alexey"]
[WhiteFideId "6337058"]
[BlackFideId "14106663"]
[WhiteElo "2503"]
[BlackElo "2185"]
[Result "1-0"]
[Round "05"]
[TimeControl "180+1"]
[Date "2021.05.04"]
[WhiteClock "0:01:10"]
[BlackClock "0:00:16"]

1. g3 {[%clk 0:03:00]}  d5 {[%clk 0:02:59]} 2. Nf3 {[%clk 0:03:00]}  Nf6 {[%clk 0:02:59]} 3. Bg2 {[%clk 0:03:01]}  g6 {[%clk 0:02:56]} 4. O-O {[%clk 0:03:00]}  Bg7 {[%clk 0:02:56]} 5. d4 {[%clk 0:02:59]}  O-O {[%clk 0:02:55]} 6. c4 {[%clk 0:03:00]}  c6 {[%clk 0:02:55]} 7. cxd5 {[%clk 0:02:59]}  cxd5 {[%clk 0:02:55]} 8. Nc3 {[%clk 0:02:54]}  Nc6 {[%clk 0:02:51]} 9. Ne5 {[%clk 0:02:53]}  e6 {[%clk 0:02:47]} 10. Bf4 {[%clk 0:02:49]}  Nh5 {[%clk 0:02:44]} 11. Nxc6 {[%clk 0:02:47]}  bxc6 {[%clk 0:02:43]} 12. Be3 {[%clk 0:02:45]}  f5 {[%clk 0:02:38]} 13. Qd2 {[%clk 0:02:39]}  Qd6 {[%clk 0:02:29]} 14. Bh6 {[%clk 0:02:33]}  c5 {[%clk 0:02:22]} 15. Bxg7 {[%clk 0:02:31]}  Kxg7 {[%clk 0:02:13]} 16. dxc5 {[%clk 0:02:25]}  Qxc5 {[%clk 0:02:13]} 17. Rac1 {[%clk 0:02:25]}  Qb6 {[%clk 0:01:26]} 18. Na4 {[%clk 0:02:11]}  Qd6 {[%clk 0:01:26]} 19. Nc5 {[%clk 0:01:45]}  Nf6 {[%clk 0:01:23]} 20. Rfd1 {[%clk 0:01:39]}  Ba6 {[%clk 0:01:17]} 21. Qa5 {[%clk 0:01:36]}  Bxe2 {[%clk 0:00:55]} 22. Re1 {[%clk 0:01:35]}  Qe5 {[%clk 0:00:47]} 23. Qd2 {[%clk 0:01:25]}  Ne4 {[%clk 0:00:40]} 24. Rxe2 {[%clk 0:01:21]}  Rac8 {[%clk 0:00:17]} 25. Nxe4 {[%clk 0:01:12]}  fxe4 {[%clk 0:00:16]} 26. Ree1 {[%clk 0:01:10]} 1-0


[Site "https://www.chess.com"]